bitfinex/quotes_BTCUSD_20251019
["timestamp","ask_amount","ask_price","bid_price","bid_amount"]
[1760844760498,0.03399864,107430.0,107420.0,0.08279735]
[1760844761610,0.03399864,107430.0,107420.0,0.17623735]
[1760844763081,0.03399864,107430.0,107420.0,0.08279735]
[1760844763498,0.03399864,107430.0,107420.0,0.15761885]
[1760844764103,0.03399864,107430.0,107420.0,0.17623735]
[1760844765510,0.03399864,107430.0,107420.0,0.08279735]
[1760844765677,0.03399864,107430.0,107420.0,0.17623735]
[1760844767380,0.22016637,107430.0,107410.0,0.12962228]
[1760844767574,0.01939654,107430.0,107410.0,0.15762178]
[1760844768755,0.01939654,107430.0,107410.0,0.06418178]
[1760844768967,0.01939654,107430.0,107410.0,0.15766178]
[1760844769256,0.01939654,107430.0,107410.0,0.06418178]
[1760844769470,0.01939654,107430.0,107410.0,0.15766178]
[1760844769863,0.01939654,107430.0,107410.0,0.12966228]
[1760844770262,0.21487541,107430.0,107410.0,0.09348]
[1760844770463,0.21487541,107430.0,107400.0,0.12258506]
[1760844771019,0.21487541,107430.0,107400.0,0.14120703]
[1760844771381,0.21487541,107430.0,107400.0,0.04772703]
[1760844771584,0.21487541,107430.0,107400.0,0.14120703]
[1760844771988,0.2559568,107430.0,107400.0,0.14120703]
[1760844772432,0.27056047,107430.0,107400.0,0.14120703]
[1760844772919,0.27056047,107430.0,107400.0,0.04772703]
[1760844773147,0.22952708,107430.0,107400.0,0.14120703]
[1760844773800,0.18618707,107420.0,107400.0,0.12258506]
[1760844773987,0.20365171,107420.0,107400.0,0.12258506]
[1760844774405,0.01746464,107420.0,107400.0,0.12258506]
[1760844774850,0.01746464,107420.0,107400.0,0.14120703]
[1760844776864,0.01746464,107420.0,107400.0,0.04772703]
[1760844777027,0.01745529,107420.0,107400.0,0.14120703]
[1760844777228,0.01745529,107420.0,107400.0,0.11320753]
[1760844778092,0.01745529,107420.0,107400.0,0.01972753]
[1760844778281,0.01745529,107420.0,107400.0,0.11320753]
[1760844779474,0.21206244,107430.0,107400.0,0.11320753]
[1760844779676,0.22951265,107430.0,107400.0,0.11320753]
[1760844781035,0.27480972,107430.0,107400.0,0.11320753]
[1760844781234,0.27480972,107430.0,107400.0,0.14120957]
[1760844782120,0.27480904,107430.0,107400.0,0.14120957]
[1760844782439,0.27480894,107430.0,107400.0,0.14120957]
[1760844782960,0.37808639,107430.0,107400.0,0.14120957]
[1760844783255,0.56587969,107430.0,107400.0,0.14120957]
[1760844784434,0.56587969,107430.0,107400.0,0.11320753]
[1760844785012,0.40224522,107430.0,107400.0,0.11320753]
[1760844785146,0.19710168,107430.0,107400.0,0.01972753]
[1760844785348,0.19710168,107430.0,107400.0,0.11320753]
[1760844785748,0.19710168,107430.0,107400.0,0.01972753]
[1760844785950,0.19710168,107430.0,107400.0,0.11320753]
[1760844786780,0.19710168,107430.0,107400.0,0.01972753]
[1760844786988,0.19710168,107430.0,107400.0,0.11320753]
[1760844787389,0.53710168,107430.0,107400.0,0.11320753]
[1760844788115,0.53710168,107430.0,107400.0,0.01972753]
[1760844788315,0.53710168,107430.0,107400.0,0.11316753]
[1760844788543,0.53710168,107430.0,107400.0,0.01972753]
[1760844788752,0.53710168,107430.0,107400.0,0.11316753]
[1760844789398,0.34,107420.0,107400.0,0.11316753]
[1760844790459,0.34,107420.0,107400.0,0.01972753]
[1760844790867,0.34,107420.0,107400.0,0.11316753]
[1760844791769,0.34,107420.0,107400.0,0.01972753]
[1760844792135,0.52618802,107420.0,107400.0,0.00110556]
[1760844792340,0.34,107420.0,107400.0,0.00110556]
[1760844793106,0.52618776,107420.0,107400.0,0.00110556]
[1760844796992,0.54365074,107420.0,107400.0,0.00110556]
[1760844797852,0.5262024,107410.0,107400.0,0.00110556]
[1760844798020,0.54366538,107410.0,107400.0,0.00110556]
[1760844798239,0.57167377,107410.0,107400.0,0.00110556]
[1760844798995,0.57167377,107410.0,107400.0,0.00125479]
[1760844799412,0.57329694,107410.0,107400.0,0.00125479]
[1760844799677,0.57167377,107410.0,107400.0,0.00125479]
[1760844800694,0.58628188,107410.0,107400.0,0.00125479]
[1760844801452,5.58628188,107410.0,107400.0,0.00125479]
[1760844801654,5.58790507,107410.0,107400.0,0.00125479]
[1760844802636,5.68231149,107410.0,107400.0,0.00125479]
[1760844802835,5.58790507,107410.0,107400.0,0.00125479]
[1760844806415,5.55989668,107410.0,107400.0,0.00125479]
[1760844807938,5.5424337,107410.0,107400.0,0.00125479]
[1760844808145,5.55985593,107410.0,107400.0,0.00125479]
[1760844812851,5.58786958,107410.0,107400.0,0.00125479]
[1760844814834,5.55985593,107410.0,107400.0,0.00125479]
[1760844815614,5.55986189,107410.0,107400.0,0.00125479]
[1760844816009,5.65426831,107410.0,107400.0,0.00125479]
[1760844816210,5.58787313,107410.0,107400.0,0.00125479]
[1760844817331,5.58787774,107410.0,107400.0,0.00125479]
[1760844820346,5.58788849,107410.0,107400.0,0.00125479]
[1760844828579,5.55987725,107410.0,107400.0,0.00125479]
[1760844830128,5.54526914,107410.0,107400.0,0.00125479]
[1760844832592,5.35906674,107410.0,107400.0,0.00125479]
[1760844832794,0.35906674,107410.0,107400.0,0.00125479]
[1760844835377,0.35744355,107410.0,107400.0,0.00125479]
[1760844837458,0.37205012,107410.0,107400.0,0.00125479]
[1760844838079,0.3736732,107410.0,107400.0,0.00125479]
[1760844839413,0.35622965,107410.0,107400.0,0.00125479]
[1760844839839,0.54243205,107410.0,107400.0,0.00125479]
[1760844843678,0.55989076,107410.0,107400.0,0.00125479]
[1760844846429,0.55826768,107410.0,107400.0,0.00125479]
[1760844848777,0.55989083,107410.0,107400.0,0.00125479]
[1760844852422,5.55989083,107410.0,107400.0,0.00125479]
[1760844853500,5.65429725,107410.0,107400.0,0.00125479]
[1760844854647,5.68231056,107410.0,107400.0,0.00125479]
[1760844860082,5.58790414,107410.0,107400.0,0.00125479]
[1760844873126,5.57044543,107410.0,107400.0,0.00125479]
[1760844873327,5.58790645,107410.0,107400.0,0.00125479]
[1760844883159,5.24790645,107410.0,107400.0,0.00125479]
[1760844885210,5.58790645,107410.0,107400.0,0.00125479]
[1760844887045,5.37947331,107410.0,107400.0,0.00125479]
[1760844887246,5.56729893,107410.0,107400.0,0.00014923]
[1760844887397,5.58190708,107410.0,107400.0,0.00014923]
[1760844887597,5.56729893,107410.0,107400.0,0.00014923]
[1760844891843,5.58190708,107410.0,107400.0,0.00014923]
[1760844900301,5.6763135,107410.0,107400.0,0.00014923]
[1760844901029,5.58190708,107410.0,107400.0,0.00014923]
[1760844911477,5.58193866,107410.0,107400.0,0.00014923]
[1760844915523,0.40173728,107410.0,107400.0,0.00014923]
[1760844915722,0.03372397,107410.0,107400.0,0.00014923]
[1760844915946,0.01911582,107410.0,107400.0,0.00014923]
[1760844918381,0.00162322,107410.0,107400.0,0.00014923]
[1760844918844,0.00162322,107410.0,107400.0,0.0187712]
[1760844919050,0.34,107410.0,107400.0,0.0187712]
[1760844919665,0.34,107410.0,107400.0,0.00014923]
[1760844920281,0.34,107420.0,107400.0,0.00014923]
[1760844920487,0.01460568,107410.0,107400.0,0.00014923]
[1760844922455,0.01622871,107410.0,107400.0,0.00014923]
[1760844928936,0.01622871,107410.0,107400.0,0.02815521]
[1760844931270,0.18618598,107420.0,107400.0,0.02815521]
[1760844931500,0.00162305,107410.0,107400.0,0.02815521]
[1760844932013,0.22348306,107430.0,107400.0,0.02815521]
[1760844932175,5.0,107420.0,107400.0,0.02815521]
[1760844934031,0.34,107410.0,107400.0,0.02815521]
[1760844934606,0.34162302,107410.0,107400.0,0.02815521]
[1760844936832,0.00162302,107410.0,107400.0,0.02815521]
[1760844950232,0.00162302,107410.0,107400.0,0.04677718]
[1760844954665,0.00162302,107410.0,107400.0,0.02815521]
[1760844961929,0.00162302,107410.0,107400.0,0.12163521]
[1760844962225,0.00162302,107410.0,107400.0,0.14025718]
[1760844962528,0.01460515,107420.0,107400.0,0.14025718]
[1760844962972,0.01460515,107420.0,107400.0,0.29846504]
[1760844963154,0.01460515,107420.0,107410.0,0.02800177]
[1760844963382,0.34,107420.0,107410.0,0.04662201]
[1760844963681,0.34,107440.0,107410.0,0.04662201]
[1760844963884,0.35747404,107440.0,107410.0,0.04662201]
[1760844964398,0.3574738,107440.0,107410.0,0.01862024]
[1760844964611,0.3574738,107440.0,107420.0,0.02800047]
[1760844966435,0.37207695,107440.0,107420.0,0.02800047]
[1760844967095,0.37370042,107440.0,107420.0,0.02800047]
[1760844970283,0.37207695,107440.0,107420.0,0.02800047]
[1760844971343,0.37207695,107440.0,107410.0,0.01862024]
[1760844971537,0.37207695,107440.0,107410.0,0.04662071]
[1760844973650,0.37370042,107440.0,107410.0,0.04662071]
[1760844973916,0.35622662,107440.0,107410.0,0.04662071]
[1760844974290,0.37367869,107440.0,107410.0,0.04662071]
[1760844974516,0.37367794,107440.0,107410.0,0.04662071]
[1760844974723,0.01622662,107440.0,107410.0,0.05593083]
[1760844974931,0.01622662,107440.0,107410.0,0.02793036]
[1760844975136,0.03367794,107440.0,107420.0,0.02799882]
[1760844978054,0.01907479,107440.0,107420.0,0.02799882]
[1760844984127,0.01908016,107440.0,107420.0,0.02799882]
[1760844986402,0.34,107430.0,107420.0,0.02799882]
[1760844987034,0.35460338,107430.0,107420.0,0.02799882]
[1760844987987,0.01460338,107430.0,107420.0,0.02799882]
[1760844988394,5.0,107440.0,107420.0,0.02799882]
[1760844988599,0.00162282,107430.0,107420.0,0.02799882]
[1760844989374,5.0,107440.0,107420.0,0.02799882]
[1760844989602,0.01747092,107440.0,107420.0,0.02799882]
[1760844989722,0.20362182,107440.0,107420.0,0.02799882]
[1760844990324,0.34,107430.0,107420.0,0.02799882]
[1760844990533,5.0,107440.0,107420.0,0.02799882]
[1760844990732,0.3574704,107440.0,107420.0,0.02799882]
[1760844992330,0.03369563,107440.0,107420.0,0.02799882]
[1760844993573,0.01622523,107440.0,107420.0,0.30762369]
[1760844994009,0.01622523,107440.0,107420.0,0.27962487]
[1760844994211,0.01622523,107440.0,107430.0,0.02799582]
[1760844994334,0.01622523,107440.0,107430.0,0.04351606]
[1760844994542,0.01658197,107440.0,107430.0,0.04351606]
[1760844995835,0.01658197,107440.0,107430.0,0.26586607]
[1760844996040,0.00197945,107440.0,107430.0,0.25034583]
[1760844998507,0.00197945,107440.0,107430.0,0.0641781]
[1760844998722,0.00197945,107440.0,107430.0,0.08166778]
[1760845000241,0.01657958,107440.0,107430.0,0.08166778]
[1760845001355,0.01657958,107440.0,107430.0,0.22896778]
[1760845001580,0.01657958,107440.0,107430.0,0.2114781]
[1760845003142,0.00197945,107440.0,107430.0,0.2114781]
[1760845003751,0.00197945,107440.0,107430.0,0.39764583]
[1760845007053,0.00197945,107440.0,107430.0,0.2114781]
[1760845008303,0.00197945,107440.0,107430.0,0.3049181]
[1760845009324,0.00197945,107440.0,107430.0,0.17529582]
[1760845009569,0.00197945,107440.0,107430.0,0.24074]
[1760845010018,0.00035674,107440.0,107430.0,0.24074]
[1760845010442,0.00035674,107440.0,107430.0,0.26873514]
[1760845010597,0.01495778,107440.0,107430.0,0.26873514]
[1760845012989,0.01495778,107440.0,107430.0,0.12143514]
[1760845013183,0.00035674,107440.0,107430.0,0.12143514]
[1760845013394,0.00197934,107440.0,107430.0,0.12143514]
[1760845013528,0.00197934,107440.0,107430.0,0.02799514]
[1760845013730,0.00197934,107440.0,107430.0,0.12143514]
[1760845018821,0.01657996,107440.0,107430.0,0.12143514]
[1760845019397,0.24744394,107460.0,107430.0,0.02799514]
[1760845019610,0.00162256,107440.0,107430.0,0.12143514]
[1760845019818,0.27543913,107460.0,107430.0,0.14005191]
[1760845020035,0.00162256,107440.0,107430.0,0.14005191]
[1760845020246,0.27543913,107460.0,107430.0,0.14005191]
[1760845020446,0.2928874,107460.0,107430.0,0.04661191]
[1760845020649,0.31728763,107460.0,107430.0,0.04661191]
[1760845020864,0.31728763,107460.0,107430.0,0.14005191]
[1760845021221,0.31728763,107460.0,107430.0,0.04661191]
[1760845021432,0.31728763,107460.0,107430.0,0.14005191]
[1760845021639,0.31728763,107460.0,107430.0,0.04661191]
[1760845021824,0.31891022,107460.0,107430.0,0.14005191]
[1760845022330,0.31891022,107460.0,107430.0,0.04661191]
[1760845022531,0.31891022,107460.0,107430.0,0.14005191]
[1760845022947,0.33351076,107460.0,107430.0,0.04661191]
[1760845023165,0.32420498,107460.0,107430.0,0.14005191]
[1760845023367,0.05807163,107460.0,107430.0,0.11205677]
[1760845023577,0.05807163,107460.0,107440.0,0.02799315]
[1760845024319,0.24367681,107470.0,107440.0,0.02799315]
[1760845024521,0.26113506,107470.0,107440.0,0.02799315]
[1760845024733,0.00162256,107460.0,107440.0,0.02799315]
[1760845024948,0.24417413,107470.0,107440.0,0.02799315]
[1760845025357,0.24417413,107470.0,107440.0,0.04660819]
[1760845026498,0.23486921,107470.0,107440.0,0.04660819]
[1760845026652,0.02385847,107470.0,107440.0,0.01861504]
[1760845027035,0.02385847,107470.0,107450.0,0.02799205]
[1760845029208,0.03845767,107470.0,107450.0,0.02799205]
[1760845029610,0.00071331,107460.0,107450.0,0.02799205]
[1760845030211,0.00233579,107460.0,107450.0,0.02799205]
[1760845031666,0.00233579,107460.0,107450.0,0.0465604]
[1760845033890,0.00233579,107460.0,107450.0,0.08274268]
[1760845034128,0.00233579,107460.0,107450.0,0.26887576]
[1760845034352,0.00233579,107460.0,107450.0,0.34374741]
[1760845034567,0.00233579,107460.0,107450.0,0.06417433]
[1760845034785,0.00233579,107460.0,107450.0,0.17622763]
[1760845038886,0.01693382,107460.0,107450.0,0.17622763]
[1760845039526,0.01693382,107460.0,107450.0,0.08278763]
[1760845039734,0.01693382,107460.0,107450.0,0.17622763]
[1760845040456,0.01693382,107460.0,107450.0,0.17618763]
[1760845041370,0.01693382,107460.0,107450.0,0.08278763]
[1760845041586,0.01693382,107460.0,107450.0,0.17618763]
[1760845043404,0.00233579,107460.0,107450.0,0.17618763]
[1760845045477,0.00233579,107460.0,107450.0,0.08278763]
[1760845045802,0.00233579,107460.0,107450.0,0.17618763]
[1760845046185,0.01693418,107460.0,107450.0,0.17618763]
[1760845046542,0.01693418,107460.0,107450.0,0.08278763]
[1760845046779,0.01693418,107460.0,107450.0,0.17618763]
[1760845046963,0.0153117,107460.0,107450.0,0.08278763]
[1760845047158,0.0153117,107460.0,107450.0,0.17618763]
[1760845047355,0.0153117,107460.0,107450.0,0.08278763]
[1760845047569,0.0153117,107460.0,107450.0,0.17618763]
[1760845049461,0.0153117,107460.0,107450.0,0.08278763]
[1760845049699,0.0153117,107460.0,107450.0,0.17618763]
[1760845057428,0.0153117,107460.0,107450.0,0.08278763]
[1760845057858,0.0153117,107460.0,107450.0,0.17618763]
[1760845058841,0.00071331,107460.0,107450.0,0.17618763]
[1760845059243,0.00071331,107460.0,107450.0,0.08278763]
[1760845059452,0.00071331,107460.0,107450.0,0.17618763]
[1760845060536,0.3649611,107470.0,107450.0,0.17618763]
[1760845061394,0.3649611,107470.0,107450.0,0.08278763]
[1760845061622,0.0249611,107470.0,107460.0,0.0934]
[1760845064541,0.0249611,107470.0,107450.0,0.08278763]
[1760845065306,0.0249611,107470.0,107460.0,0.0934]
[1760845067145,0.02531769,107470.0,107460.0,0.0934]
[1760845067542,0.02531769,107470.0,107450.0,0.08278763]
[1760845067745,0.02531769,107470.0,107460.0,0.0934]
[1760845068340,0.02531769,107470.0,107450.0,0.08278763]
[1760845068644,0.02531769,107470.0,107460.0,0.0934]
[1760845069052,0.02531769,107470.0,107450.0,0.08278763]
[1760845069255,0.02531769,107470.0,107460.0,0.0934]
[1760845071282,0.02531769,107470.0,107450.0,0.08278763]
[1760845071448,0.02531769,107470.0,107460.0,0.0934]
[1760845071650,0.03991594,107470.0,107460.0,0.0934]
[1760845072395,0.03991594,107470.0,107450.0,0.08278763]
[1760845072621,0.03991594,107470.0,107460.0,0.0934]
[1760845073208,0.02531769,107470.0,107460.0,0.0934]
[1760845073600,0.02531769,107470.0,107460.0,0.01861157]
[1760845073762,0.02531769,107470.0,107460.0,0.11201157]
[1760845075505,0.20663076,107500.0,107460.0,0.11201157]
[1760845075737,0.00162229,107470.0,107460.0,0.14819385]
[1760845076084,0.24549115,107500.0,107460.0,0.05479385]
[1760845076279,0.00162228,107470.0,107460.0,0.05479385]
[1760845076519,0.24549115,107500.0,107460.0,0.14819385]
[1760845076733,0.26296308,107500.0,107460.0,0.05479385]
[1760845077245,0.26296308,107500.0,107470.0,0.0934]
[1760845077441,0.26296308,107500.0,107460.0,0.05479385]
[1760845077601,0.34,107490.0,107470.0,0.0934]
[1760845077820,0.35747193,107490.0,107470.0,0.0934]
[1760845078738,0.35909421,107490.0,107470.0,0.0934]
[1760845080492,0.35747193,107490.0,107470.0,0.0934]
[1760845080645,0.35747193,107490.0,107460.0,0.05479385]
[1760845080847,0.35747193,107490.0,107470.0,0.0934]
[1760845081446,0.35747193,107490.0,107460.0,0.05479385]
[1760845081839,0.35747193,107490.0,107470.0,0.0934]
[1760845082101,0.35747193,107490.0,107460.0,0.05479385]
[1760845082240,0.35747193,107490.0,107470.0,0.0934]
[1760845082758,0.00035654,107480.0,107460.0,0.05479385]
[1760845083370,0.00035654,107480.0,107470.0,0.0934]
[1760845083727,0.0019788,107480.0,107470.0,0.0934]
[1760845084297,0.0019788,107480.0,107460.0,0.05479385]
[1760845084593,0.01657547,107480.0,107470.0,0.0934]
[1760845085421,0.01495321,107480.0,107460.0,0.05479385]
[1760845085642,0.01495321,107480.0,107470.0,0.0934]
[1760845086348,0.01495321,107480.0,107460.0,0.05479385]
[1760845086481,0.01495321,107480.0,107470.0,0.0934]
[1760845087042,0.01495321,107480.0,107460.0,0.05479385]
[1760845087443,0.01495321,107480.0,107470.0,0.0934]
[1760845087617,0.24549115,107500.0,107470.0,0.0934]
[1760845087838,0.26295246,107500.0,107470.0,0.0934]
[1760845088242,0.26457473,107500.0,107460.0,0.05479385]
[1760845088442,0.26457473,107500.0,107470.0,0.0934]
[1760845088649,0.26457473,107500.0,107460.0,0.05479385]
[1760845088846,0.26449463,107500.0,107470.0,0.0934]
[1760845089017,0.26449463,107500.0,107460.0,0.05479385]
[1760845089246,0.26449463,107500.0,107470.0,0.0934]
[1760845089704,0.34,107490.0,107470.0,0.0934]
[1760845089909,0.35746131,107490.0,107470.0,0.0934]
[1760845090988,0.37205755,107490.0,107460.0,0.05479385]
[1760845091223,0.37205755,107490.0,107470.0,0.0934]
[1760845091427,0.37205755,107490.0,107460.0,0.05479385]
[1760845091586,0.37205755,107490.0,107470.0,0.0934]
[1760845092671,0.37205755,107490.0,107460.0,0.05479385]
[1760845092877,0.37205755,107490.0,107470.0,0.0934]
[1760845093809,0.37205755,107490.0,107460.0,0.05479385]
[1760845094002,0.37205755,107490.0,107470.0,0.0934]
[1760845094678,0.37205755,107490.0,107460.0,0.05479385]
[1760845094880,0.37205755,107490.0,107470.0,0.0934]
[1760845096594,0.37205755,107490.0,107460.0,0.05479385]
[1760845097076,0.37205755,107490.0,107470.0,0.0934]
[1760845099443,0.37205755,107490.0,107470.0,0.11200984]
[1760845099668,0.37206129,107490.0,107470.0,0.01860984]
[1760845099886,0.37206129,107490.0,107470.0,0.11200984]
[1760845100298,0.37206129,107490.0,107470.0,0.01860984]
[1760845100493,0.37206129,107490.0,107470.0,0.11200984]
[1760845102226,0.5581252,107490.0,107470.0,0.01860984]
[1760845102402,0.56742839,107490.0,107460.0,0.2407]
[1760845102604,0.37206129,107490.0,107460.0,0.2407]
[1760845102787,0.55812633,107490.0,107460.0,0.2407]
[1760845103620,0.55812633,107490.0,107460.0,0.1473]
[1760845103794,0.55812633,107490.0,107460.0,0.25931157]
[1760845104002,0.55812633,107490.0,107460.0,0.1473]
[1760845104203,0.55812633,107490.0,107460.0,0.16591157]
[1760845104704,0.55812633,107490.0,107460.0,0.01861157]
[1760845104904,0.55812633,107490.0,107460.0,0.11201157]
[1760845105168,0.55812633,107490.0,107460.0,0.01861157]
[1760845105311,0.55812633,107490.0,107460.0,0.11201157]
[1760845105507,0.55812633,107490.0,107460.0,0.01861157]
[1760845105710,0.56742952,107490.0,107460.0,0.11201157]
[1760845105914,0.56742952,107490.0,107460.0,0.01861157]
[1760845106320,0.64887608,107490.0,107460.0,0.01861157]
[1760845106663,0.53540377,107470.0,107440.0,0.1473]
[1760845106849,0.55286882,107470.0,107430.0,0.04660804]
[1760845107057,0.18611633,107460.0,107440.0,0.0934]
[1760845107283,0.01747464,107460.0,107440.0,0.0934]
[1760845107477,0.53540377,107470.0,107440.0,0.0934]
[1760845107639,0.55286554,107470.0,107430.0,0.04660804]
[1760845107900,0.55286554,107470.0,107440.0,0.0934]
[1760845108272,0.55286554,107470.0,107440.0,0.09389732]
[1760845108481,0.18612084,107460.0,107440.0,0.09389732]
[1760845108885,0.18611582,107460.0,107440.0,0.09389732]
[1760845109451,0.53540377,107470.0,107440.0,0.09389732]
[1760845109723,0.00162246,107460.0,107440.0,0.02849207]
[1760845112357,0.34,107450.0,107440.0,0.02849207]
[1760845112699,0.34,107450.0,107440.0,0.00049732]
[1760845113581,0.18774003,107460.0,107440.0,0.00049732]
[1760845115736,0.34,107450.0,107440.0,0.00049732]
[1760845128938,0.34162246,107460.0,107440.0,0.00049732]
[1760845130037,0.52773843,107460.0,107440.0,0.00049732]
[1760845132289,0.54517963,107460.0,107440.0,0.00049732]
[1760845137615,0.20355717,107460.0,107440.0,0.00049732]
[1760845137816,0.20517971,107460.0,107440.0,0.00049732]
[1760845138374,0.01906374,107460.0,107440.0,0.00049732]
[1760845141295,0.35906374,107460.0,107440.0,0.00049732]
[1760845145237,0.01906374,107460.0,107440.0,0.00049732]
[1760845145639,0.01906374,107460.0,107440.0,0.01911236]
[1760845145885,0.01906374,107460.0,107440.0,0.0471064]
[1760845146500,0.01906374,107460.0,107440.0,0.02849136]
[1760845148910,0.033663,107460.0,107440.0,0.02849136]
[1760845150708,0.0162218,107460.0,107440.0,0.21463775]
[1760845151017,0.0162218,107460.0,107450.0,0.04660449]
[1760845153203,0.0162218,107460.0,107450.0,0.25030655]
[1760845153871,0.01459926,107460.0,107450.0,0.25030655]
[1760845155422,0.34,107490.0,107450.0,0.2596132]
[1760845155626,0.35744765,107490.0,107460.0,0.01861157]
[1760845156238,0.35744765,107490.0,107460.0,0.04659926]
[1760845156454,0.35906995,107490.0,107460.0,0.04659926]
[1760845157278,0.35906995,107490.0,107460.0,0.13999926]
[1760845158403,0.01906995,107490.0,107460.0,0.33541951]
[1760845158623,0.0016223,107490.0,107460.0,0.31680794]
[1760845158843,0.0016223,107490.0,107470.0,0.01855166]
[1760845159680,0.016218,107490.0,107470.0,0.01855166]
[1760845161432,0.016218,107490.0,107470.0,0.04653674]
[1760845161606,0.0145957,107490.0,107470.0,0.04653674]
[1760845162524,0.01621794,107490.0,107470.0,0.04653674]
[1760845168806,0.00162224,107490.0,107470.0,0.04653674]
[1760845172059,0.01621793,107490.0,107470.0,0.04653674]
[1760845179623,0.01621793,107490.0,107470.0,0.13989674]
[1760845180273,0.35621793,107490.0,107470.0,0.13989674]
[1760845180413,0.35621793,107490.0,107470.0,0.04653674]
[1760845180627,0.35621793,107490.0,107470.0,0.13989674]
[1760845180867,0.35621793,107490.0,107470.0,0.04653674]
[1760845181063,0.35621793,107490.0,107470.0,0.13989674]
[1760845181270,0.37366484,107490.0,107470.0,0.3259944]
[1760845181469,0.35621793,107490.0,107470.0,0.30744274]
[1760845181672,0.35621793,107490.0,107480.0,0.01860811]
[1760845181910,0.01621793,107490.0,107480.0,0.20468924]
[1760845182087,0.00162224,107490.0,107480.0,0.02798245]
[1760845182261,0.00162224,107490.0,107480.0,0.04659056]
[1760845182486,0.04992158,107500.0,107480.0,0.04659056]
[1760845182679,0.06737173,107500.0,107480.0,0.04659056]
[1760845182926,0.06751054,107500.0,107480.0,0.04659056]
[1760845185085,0.06913264,107500.0,107480.0,0.04659056]
[1760845185281,0.08372723,107500.0,107480.0,0.04659056]
[1760845187445,0.00035649,107490.0,107480.0,0.04659056]
[1760845192071,0.0149511,107490.0,107480.0,0.04659056]
[1760845195820,0.0149511,107490.0,107480.0,0.08277284]
[1760845196442,0.0149511,107490.0,107480.0,0.17613284]
[1760845200124,0.0149511,107490.0,107480.0,0.08277284]
[1760845200281,0.0149511,107490.0,107480.0,0.17613284]
[1760845201296,0.0149511,107490.0,107480.0,0.08277284]
[1760845201501,0.0149511,107490.0,107470.0,0.01860984]
[1760845201732,0.03240786,107490.0,107460.0,0.04659793]
[1760845201942,0.03240786,107490.0,107470.0,0.09336]
[1760845202340,0.0149511,107490.0,107480.0,0.01860811]
[1760845203291,0.0149511,107490.0,107470.0,0.15752601]
[1760845203486,0.0149511,107490.0,107470.0,0.02798373]
[1760845203686,0.0149511,107490.0,107470.0,0.12134373]
[1760845203895,0.0149511,107490.0,107470.0,0.02798373]
[1760845204208,0.0149511,107490.0,107470.0,0.12134373]
[1760845204868,0.0149511,107490.0,107470.0,0.02798373]
[1760845205173,0.0149511,107490.0,107470.0,0.12134373]
[1760845207455,0.01657327,107490.0,107470.0,0.12134373]
[1760845213438,0.01657327,107490.0,107470.0,0.13995357]
[1760845213855,0.20083726,107500.0,107470.0,0.13995357]
[1760845214068,0.00162217,107490.0,107470.0,0.13995357]
[1760845214877,5.0,107500.0,107470.0,0.13995357]
[1760845215077,5.0,107500.0,107470.0,0.14009238]
[1760845215078,0.01745613,107500.0,107470.0,0.14009238]
[1760845215924,0.01745613,107500.0,107470.0,0.11210865]
[1760845216109,0.01745613,107500.0,107470.0,0.30751159]
[1760845216344,0.05476578,107500.0,107480.0,0.02798375]
[1760845216621,0.05476578,107500.0,107480.0,0.04659186]
[1760845217280,0.0563879,107500.0,107480.0,0.04659186]
[1760845218876,0.03893177,107500.0,107480.0,0.01860811]
[1760845219215,0.03893177,107500.0,107490.0,0.02798164]
[1760845222501,0.05352606,107500.0,107490.0,0.02798164]
[1760845224793,0.05388251,107500.0,107490.0,0.02798164]
[1760845230176,0.05388251,107500.0,107480.0,0.01860811]
[1760845230375,0.05388251,107500.0,107490.0,0.0279807]
[1760845247854,0.22167465,107510.0,107490.0,0.0279807]
[1760845248067,0.00162208,107500.0,107490.0,0.0279807]
[1760845248463,0.03941504,107500.0,107490.0,0.0279807]
[1760845248589,0.00162208,107500.0,107490.0,0.0279807]
[1760845250610,0.00162208,107500.0,107490.0,0.1213407]
[1760845251310,0.03933085,107500.0,107490.0,0.1213407]
[1760845255269,0.03933085,107500.0,107490.0,0.0279807]
[1760845255676,0.03933085,107500.0,107480.0,0.11196811]
[1760845255910,0.03933085,107500.0,107480.0,0.13995001]
[1760845257325,0.05680465,107500.0,107480.0,0.13995001]
[1760845257894,0.18606381,107490.0,107480.0,0.04659001]
[1760845258100,0.52608113,107480.0,107470.0,0.00013881]
[1760845258302,0.54355521,107480.0,107470.0,0.00013881]
[1760845258502,5.54355521,107480.0,107470.0,0.00013881]
[1760845258707,5.70464706,107480.0,107470.0,0.00013881]
[1760845258919,5.67189454,107480.0,107470.0,0.00013881]
[1760845259143,5.57152769,107480.0,107470.0,0.00013881]
[1760845259553,5.5861272,107480.0,107470.0,0.00013881]
[1760845260407,5.5861272,107480.0,107430.0,0.03052369]
[1760845260408,0.5261504,107440.0,107430.0,0.00253171]
[1760845260633,0.54358693,107440.0,107430.0,0.00302903]
[1760845261386,0.5261504,107440.0,107430.0,0.00302903]
[1760845262016,0.52777304,107440.0,107430.0,0.00302903]
[1760845262220,0.34162264,107440.0,107430.0,0.00302903]
[1760845263663,0.54515424,107440.0,107430.0,0.00302903]
[1760845263869,0.35900384,107440.0,107430.0,0.00302903]
[1760845264972,0.54515424,107440.0,107430.0,0.00302903]
[1760845265171,0.35900384,107440.0,107430.0,0.00302903]
[1760845269317,0.3573812,107440.0,107430.0,0.00302903]
[1760845272464,0.5435316,107440.0,107430.0,0.00302903]
[1760845274242,0.3573812,107440.0,107430.0,0.00302903]
[1760845275028,0.5435316,107440.0,107430.0,0.00302903]
[1760845275580,0.3573812,107440.0,107430.0,0.00302903]
[1760845280244,0.35900382,107440.0,107430.0,0.00302903]
[1760845280461,0.54515422,107440.0,107430.0,0.00302903]
[1760845281668,0.35900382,107440.0,107430.0,0.00302903]
[1760845283031,0.01900382,107440.0,107430.0,0.00302903]
[1760845285015,0.35900382,107440.0,107430.0,0.00302903]
[1760845287004,0.54515422,107440.0,107430.0,0.00302903]
[1760845287787,0.35900382,107440.0,107430.0,0.00302903]
[1760845292514,0.54525534,107440.0,107430.0,0.00302903]
[1760845292709,0.35910494,107440.0,107430.0,0.00302903]
[1760845292946,0.54525534,107440.0,107430.0,0.00302903]
[1760845293347,0.54363272,107440.0,107430.0,0.00302903]
[1760845295747,0.54525538,107440.0,107430.0,0.00302903]
[1760845297490,0.55985793,107440.0,107430.0,0.00302903]
[1760845298014,0.21985793,107440.0,107430.0,0.00302903]
[1760845300012,0.55823527,107440.0,107430.0,0.00302903]
[1760845300362,0.55985793,107440.0,107430.0,0.00302903]
[1760845300692,0.55823527,107440.0,107430.0,0.00302903]
[1760845301807,0.37208487,107440.0,107430.0,0.00302903]
[1760845302327,0.03208487,107440.0,107430.0,0.00302903]
[1760845302533,0.01748232,107440.0,107430.0,0.00302903]
[1760845302743,0.35748232,107440.0,107430.0,0.00302903]
[1760845303182,0.35910489,107440.0,107430.0,0.00302903]
[1760845305867,0.01910489,107440.0,107430.0,0.22537904]
[1760845306270,0.01910489,107440.0,107430.0,0.03921131]
[1760845306499,0.01910489,107440.0,107430.0,0.27198826]